bitfinex/quotes_BTCUSD_20251114
["timestamp","ask_amount","ask_price","bid_price","bid_amount"]
[1763135103135,0.04663,96782.0,96773.0,0.00140016]
[1763135103365,0.04726,96782.0,96773.0,0.00140016]
[1763135103557,0.001,96778.0,96773.0,0.00140016]
[1763135103919,0.04726,96782.0,96773.0,0.00140016]
[1763135105203,0.06788,96789.0,96775.0,0.20666494]
[1763135105726,0.06788,96789.0,96779.0,0.20665466]
[1763135105928,0.06788,96789.0,96777.0,0.20666067]
[1763135106132,0.06788,96789.0,96773.0,0.00240016]
[1763135106340,0.06788,96789.0,96779.0,0.2066554]
[1763135106671,0.06788,96789.0,96774.0,0.20666708]
[1763135106876,0.16152,96789.0,96773.0,0.00140016]
[1763135107290,0.09364,96788.0,96773.0,0.22873534]
[1763135107495,0.09364,96788.0,96773.0,0.02206708]
[1763135107694,0.06788,96789.0,96776.0,0.20666145]
[1763135108029,0.06788,96789.0,96777.0,0.02066606]
[1763135108471,0.16152,96789.0,96773.0,0.20806726]
[1763135109095,0.16152,96789.0,96775.0,0.20666316]
[1763135109268,0.06788,96789.0,96783.0,0.20664587]
[1763135109478,0.06788,96789.0,96773.0,0.00140016]
[1763135109479,0.09364,96788.0,96773.0,0.00140016]
[1763135109675,0.00094,96777.0,96773.0,0.00140016]
[1763135109881,0.00094,96774.0,96773.0,0.00140016]
[1763135110086,0.06882,96774.0,96773.0,0.00140016]
[1763135110453,0.075702,96774.0,96773.0,0.00140016]
[1763135111366,0.06882,96774.0,96773.0,0.00140016]
[1763135112691,0.06982,96774.0,96773.0,0.00140016]
[1763135112908,0.07082,96774.0,96760.0,0.00045352]
[1763135113119,0.10572654,96761.0,96760.0,0.00045352]
[1763135113344,0.17360654,96761.0,96760.0,0.00045352]
[1763135113801,0.00093,96761.0,96760.0,0.00045352]
[1763135114007,0.06788,96761.0,96760.0,0.00045352]
[1763135114183,0.06972,96761.0,96760.0,0.00045352]
[1763135114649,0.001,96761.0,96760.0,0.00045352]
[1763135114831,0.001,96761.0,96760.0,0.2071505]
[1763135115646,0.00110115,96761.0,96760.0,0.58356924]
[1763135115859,0.09502,96815.0,96780.0,0.33333271]
[1763135116074,0.0002,96840.0,96782.0,0.323]
[1763135116075,0.00072,96819.0,96782.0,0.323]
[1763135116216,0.11575264,96810.0,96793.0,0.10479654]
[1763135116416,0.11451,96816.0,96800.0,0.20660992]
[1763135116619,0.62841175,96810.0,96791.0,0.20662956]
[1763135116819,0.01733815,96810.0,96793.0,0.323]
[1763135117025,0.11451,96816.0,96808.0,0.20659253]
[1763135117260,0.09686,96828.0,96803.0,0.20660381]
[1763135117496,0.09686,96828.0,96800.0,0.01033057]
[1763135117497,0.001,96810.0,96808.0,0.00045352]
[1763135117689,0.001,96810.0,96808.0,0.20704613]
[1763135117892,0.001,96810.0,96808.0,0.00045352]
[1763135118537,0.02073264,96818.0,96811.0,0.20658725]
[1763135118748,0.06788,96827.0,96808.0,0.00045352]
[1763135118980,0.04444,96831.0,96809.0,0.19546654]
[1763135119179,0.02073264,96839.0,96831.0,0.20654348]
[1763135119403,0.09655,96840.0,96830.0,0.20654585]
[1763135119618,0.36466093,96840.0,96829.0,0.20654969]
[1763135119830,0.0002,96840.0,96839.0,0.26768836]
[1763135120049,0.0002,96840.0,96839.0,0.06788]
[1763135120251,0.0002,96840.0,96811.0,0.09067]
[1763135120252,0.0002,96840.0,96833.0,0.06788]
[1763135120671,0.0002,96840.0,96837.0,0.20653083]
[1763135120889,0.0002,96840.0,96833.0,0.27442073]
[1763135121246,0.0002,96840.0,96838.0,0.20652867]
[1763135122070,0.0002,96840.0,96839.0,0.19546654]
[1763135122252,0.0002,96840.0,96839.0,0.56188528]
[1763135122499,0.0002,96840.0,96839.0,0.47121528]
[1763135123850,0.0002,96850.0,96840.0,0.04341874]
[1763135124062,0.0002,96850.0,96849.0,0.63408577]
[1763135124312,0.0002,96850.0,96849.0,0.70196577]
[1763135124515,0.0002,96850.0,96849.0,1.04080577]
[1763135124732,0.0026989,96850.0,96849.0,1.04080577]
[1763135125353,0.0026989,96850.0,96849.0,1.04076577]
[1763135125885,0.0026989,96850.0,96849.0,0.97292577]
[1763135126106,0.0026989,96850.0,96849.0,1.04376577]
[1763135126647,0.0026989,96850.0,96849.0,0.97292577]
[1763135126801,0.0026989,96850.0,96849.0,1.04276577]
[1763135126802,0.00060571,96850.0,96849.0,1.04276577]
[1763135126985,0.00060571,96850.0,96849.0,1.04476577]
[1763135127216,0.00060571,96850.0,96849.0,1.04276577]
[1763135127421,0.0002,96900.0,96879.0,0.57286182]
[1763135127650,0.0002,96900.0,96879.0,0.75126182]
[1763135127845,0.0002,96900.0,96879.0,0.69010182]
[1763135128410,0.0002,96900.0,96899.0,0.20640047]
[1763135128560,0.0002,96900.0,96899.0,0.64111273]
[1763135128775,0.0002,96900.0,96899.0,0.73178273]
[1763135128934,0.0002,96900.0,96899.0,0.64111273]
[1763135129136,0.0002,96900.0,96899.0,0.43471226]
[1763135129340,0.0002,96900.0,96899.0,0.31811273]
[1763135129950,0.0002,96900.0,96899.0,0.31911273]
[1763135130176,0.0002,96900.0,96899.0,0.32011273]
[1763135130384,0.0002,96900.0,96899.0,0.31911273]
[1763135130996,0.0002,96900.0,96899.0,0.32011273]
[1763135132087,0.003754,96933.0,96922.0,0.04341874]
[1763135132300,0.003754,96933.0,96932.0,0.65983895]
[1763135132524,0.003754,96933.0,96932.0,0.72767895]
[1763135132737,0.003754,96933.0,96932.0,0.66628895]
[1763135132961,0.003754,96933.0,96932.0,0.66624895]
[1763135133179,0.003754,96933.0,96932.0,0.68524809]
[1763135133670,0.003754,96933.0,96932.0,0.68570161]
[1763135133888,0.003754,96933.0,96932.0,1.08670161]
[1763135134105,0.003754,96933.0,96932.0,1.08570161]
[1763135134287,0.003754,96933.0,96932.0,1.08770161]
[1763135134946,0.003754,96933.0,96932.0,1.01990161]
[1763135135193,0.003754,96933.0,96932.0,1.08770161]
[1763135135415,0.02073264,96991.0,96961.0,0.04341874]
[1763135135632,0.02073264,96991.0,96960.0,0.01031353]
[1763135135633,0.02073264,96991.0,96974.0,0.20623911]
[1763135135836,0.02073264,96991.0,96975.0,0.11855914]
[1763135136047,0.02073264,96991.0,96976.0,0.01899914]
[1763135136293,0.02073264,96991.0,96977.0,0.01899914]
[1763135136507,0.02073264,96992.0,96978.0,0.01899914]
[1763135136724,0.02073264,96992.0,96980.0,0.20622671]
[1763135136926,0.002,96991.0,96981.0,0.01899914]
[1763135137133,0.001,96991.0,96982.0,0.08679914]
[1763135137341,0.02073264,96992.0,96983.0,0.01899914]
[1763135137556,0.001,96991.0,96984.0,0.01899914]
[1763135137763,0.001,96991.0,96985.0,0.01899914]
[1763135137966,0.001,96991.0,96986.0,0.01899914]
[1763135138171,0.001,96991.0,96987.0,0.01899914]
[1763135138390,0.001,96991.0,96988.0,0.01899914]
[1763135138598,0.001,96991.0,96989.0,0.01899914]
[1763135138814,0.001,96992.0,96990.0,0.01899914]
[1763135138992,0.001,96992.0,96991.0,0.01899914]
[1763135139237,0.02073264,96999.0,96991.0,0.01899914]
[1763135139447,0.07009096,96992.0,96978.0,0.00045352]
[1763135139656,0.02073264,96991.0,96979.0,0.01891499]
[1763135139863,0.07941,96996.0,96980.0,0.01891499]
[1763135140089,0.07941,96996.0,96981.0,0.01891499]
[1763135140293,0.02073264,96995.0,96982.0,0.01891499]
[1763135140495,0.45220749,97000.0,96978.0,0.00045352]
[1763135140496,0.001,96999.0,96983.0,0.01891499]
[1763135140722,0.09956176,96999.0,96984.0,0.01891499]
[1763135140972,0.36446093,96993.0,96985.0,0.01891499]
[1763135141165,0.02073264,96992.0,96986.0,0.01891499]
[1763135141391,0.10014264,96992.0,96987.0,0.01891499]
[1763135141589,0.10014264,96992.0,96988.0,0.01891499]
[1763135141793,0.07941,96991.0,96989.0,0.01891499]
[1763135141998,0.07941,96991.0,96978.0,0.00045352]
[1763135141999,0.02073264,96990.0,96978.0,0.00045352]
[1763135142206,0.38519357,96990.0,96979.0,0.01890993]
[1763135142412,0.07941,96989.0,96980.0,0.01890993]
[1763135142698,0.07941,96989.0,96978.0,0.00045352]
[1763135142699,0.10479654,96983.0,96981.0,0.01890993]
[1763135142908,0.00079,96979.0,96978.0,0.00045352]
[1763135143125,0.01518603,96979.0,96978.0,0.01937352]
[1763135143344,0.00079,96979.0,96978.0,0.00045352]
[1763135143565,0.01159541,96979.0,96924.0,0.09853]
[1763135143784,0.04515,96938.0,96921.0,0.20635271]
[1763135144039,0.04515,96938.0,96925.0,0.20634353]
[1763135144262,0.36446093,96950.0,96926.0,0.01894008]
[1763135144516,0.09696,96942.0,96927.0,0.03957416]
[1763135144740,0.06776,96947.0,96928.0,0.01894008]
[1763135145002,0.09696,96946.0,96929.0,0.01894008]
[1763135145225,0.09696,96946.0,96912.0,0.11413]
[1763135145226,0.03134,96921.0,96912.0,0.06776]
[1763135145474,0.03165,96921.0,96913.0,0.01896724]
[1763135145713,0.03134,96931.0,96930.0,0.20633446]
[1763135145953,0.03134,96931.0,96930.0,0.01896724]
[1763135146191,0.0323,96931.0,96930.0,0.01896724]
[1763135146413,0.0323,96931.0,96902.0,0.0206394]
[1763135146688,0.0323,96931.0,96878.0,0.10479654]
[1763135146689,0.36446093,96911.0,96903.0,0.01900535]
[1763135146889,0.36446093,96910.0,96904.0,0.01900535]
[1763135147115,0.06776,96915.0,96905.0,0.01900535]
[1763135147336,0.06776,96915.0,96906.0,0.01900535]
[1763135147551,0.00096,96907.0,96887.0,0.20642487]
[1763135147786,0.00096,96907.0,96888.0,0.01902649]
[1763135148022,0.36446093,96900.0,96889.0,0.01902649]
[1763135148249,0.16553,96899.0,96890.0,0.01902649]
[1763135148462,0.16553,96899.0,96891.0,0.01902649]
[1763135148675,0.16553,96899.0,96876.0,0.06776]
[1763135148676,0.14197,96898.0,96892.0,0.01902649]
[1763135148910,0.00044,96893.0,96892.0,0.01902649]
[1763135149215,0.00044,96893.0,96892.0,0.01904665]
[1763135150196,0.00044,96893.0,96892.0,0.22546204]
[1763135150441,0.00045308,96907.0,96892.0,0.01904665]
[1763135150684,0.06776,96904.0,96893.0,0.03968797]
[1763135150930,0.00045308,96907.0,96903.0,0.20639182]
[1763135151142,0.00045308,96907.0,96906.0,0.59077556]
[1763135151362,0.00045308,96907.0,96906.0,0.60982221]
[1763135151628,0.00045308,96907.0,96906.0,0.81953095]
[1763135151839,0.00045308,96907.0,96906.0,0.72100095]
[1763135152649,0.00045308,96907.0,96906.0,0.65961095]
[1763135153026,0.00045308,96907.0,96906.0,0.66061095]
[1763135153648,0.00045308,96907.0,96906.0,1.06061095]
[1763135154468,0.00045308,96907.0,96906.0,1.06161095]
[1763135155108,0.00045308,96907.0,96906.0,1.0415643]
[1763135155508,0.00045308,96907.0,96906.0,1.0435643]
[1763135155897,0.00045308,96907.0,96906.0,1.0425643]
[1763135156102,0.04515,96960.0,96931.0,0.04341874]
[1763135156301,0.04515,96960.0,96958.0,0.20627305]
[1763135156500,0.04515,96960.0,96942.0,0.10479654]
[1763135156501,0.04515,96960.0,96945.0,0.20630254]
[1763135156709,0.00291864,96959.0,96953.0,0.20628539]
[1763135156938,0.00291864,96959.0,96944.0,0.06776]
[1763135156939,0.02216811,96971.0,96944.0,0.16629]
[1763135157114,0.04515,96965.0,96963.0,0.20626319]
[1763135157316,0.04515,96965.0,96961.0,0.20626796]
[1763135157317,0.04515,96976.0,96969.0,0.20625016]
[1763135157554,0.02073264,96975.0,96957.0,0.04637]
[1763135157838,0.02073264,96975.0,96946.0,0.323]
[1763135157839,0.11782264,96975.0,96956.0,0.20627729]
[1763135158058,0.001,96960.0,96954.0,0.20628303]
[1763135158286,0.001,96960.0,96959.0,0.20627275]
[1763135158474,0.02073264,96975.0,96961.0,0.20626816]
[1763135158682,0.02073264,96975.0,96957.0,0.10479654]
[1763135158877,0.11882264,96975.0,96957.0,0.10479654]
[1763135159299,0.0221838,96974.0,96957.0,0.10479654]
[1763135159497,0.02073264,96973.0,96957.0,0.31107231]
[1763135159698,0.36446093,96970.0,96956.0,0.06776]
[1763135159899,0.04515,96958.0,96954.0,0.00013213]
[1763135160666,0.00097,96955.0,96954.0,0.00013213]
[1763135161070,0.02073264,96957.0,96955.0,0.20628126]
[1763135161274,0.04515,96976.0,96957.0,0.24969574]
[1763135161451,0.11003279,96975.0,96954.0,0.00013213]
[1763135161650,0.36446093,96970.0,96955.0,0.06776]
[1763135161909,0.02073264,96969.0,96966.0,0.20625608]
[1763135162126,0.04515,96976.0,96956.0,0.10479654]
[1763135162327,0.02218518,96986.0,96961.0,0.04341874]
[1763135162441,0.001,96976.0,96973.0,0.20624249]
[1763135162650,0.001,96976.0,96974.0,0.20624084]
[1763135162874,0.001,96976.0,96970.0,0.20624935]
[1763135163075,0.001,96976.0,96968.0,0.15941789]
[1763135163247,0.00485,96969.0,96967.0,0.06776]
[1763135163474,0.00485,96969.0,96954.0,0.09179002]
[1763135163677,0.00481,96955.0,96954.0,0.00013213]
[1763135164008,0.07257,96955.0,96954.0,0.00013213]
[1763135164644,0.09330264,96955.0,96954.0,0.00013213]
[1763135165004,0.09430264,96955.0,96954.0,0.00013213]
[1763135165405,0.07357,96955.0,96954.0,0.00013213]
[1763135165632,0.09175999,96955.0,96954.0,0.00013213]
[1763135165833,0.08694999,96955.0,96954.0,0.00013213]
[1763135166019,0.02218999,96955.0,96954.0,0.00013213]
[1763135166225,0.02118999,96955.0,96954.0,0.00013213]
[1763135166445,0.02686999,96955.0,96954.0,0.00013213]
[1763135166646,0.04860263,96955.0,96954.0,0.00013213]
[1763135167085,0.07071855,96955.0,96914.0,0.12809123]
[1763135167292,0.07071855,96955.0,96914.0,0.00013522]
[1763135167293,0.04785,96915.0,96914.0,0.00013522]
[1763135167495,0.04785,96925.0,96914.0,0.00013522]
[1763135167693,0.01917823,96924.0,96919.0,0.20635592]
[1763135167921,0.01917692,96923.0,96920.0,0.02063557]
[1763135168094,0.04785,96932.0,96920.0,0.02063557]
[1763135168095,0.04785,96932.0,96930.0,0.20633329]
[1763135168303,0.0191784,96931.0,96929.0,0.20633509]
[1763135168506,0.0191784,96931.0,96914.0,0.00013522]
[1763135168507,0.0191784,96930.0,96914.0,0.00013522]
[1763135168739,0.36446093,96924.0,96914.0,0.00013522]
[1763135168914,0.0869784,96923.0,96914.0,0.00013522]
[1763135169264,0.0191784,96922.0,96918.0,0.20635857]
[1763135169491,0.06181,96940.0,96930.0,0.20633308]
[1763135169736,0.06565524,96939.0,96921.0,0.20635248]
[1763135169984,0.06565524,96939.0,96914.0,0.00013522]
[1763135169985,0.01917524,96938.0,96922.0,0.20635149]
[1763135170207,0.001,96924.0,96922.0,0.20635149]
[1763135170425,0.04648,96939.0,96914.0,0.00013522]
[1763135170426,0.01980524,96923.0,96914.0,0.00013522]
[1763135170634,0.01917524,96922.0,96914.0,0.00013522]
[1763135170836,0.01917524,96921.0,96914.0,0.00013522]
[1763135171047,0.01917283,96920.0,96914.0,0.00013522]
[1763135171256,0.01917283,96919.0,96914.0,0.00013522]
[1763135171463,0.00063,96915.0,96914.0,0.00013522]
[1763135171616,0.01980283,96915.0,96914.0,0.00013522]
[1763135173968,0.3445441,96915.0,96914.0,0.00013522]
[1763135174183,0.36446093,96884.0,96861.0,0.12809123]
[1763135174444,0.00063,96875.0,96861.0,0.12854431]
[1763135174662,0.04579,96862.0,96861.0,0.00045308]
[1763135174873,0.11363,96862.0,96861.0,0.00045308]
[1763135175952,0.11413,96862.0,96861.0,0.00045308]
[1763135176380,0.11363,96862.0,96861.0,0.00045308]
[1763135177024,0.11413,96862.0,96861.0,0.00045308]
[1763135177461,0.09733562,96862.0,96861.0,0.00045308]
[1763135177672,0.14633562,96862.0,96861.0,0.00045308]
[1763135178107,0.14629562,96862.0,96861.0,0.00045308]
[1763135178759,0.02899562,96862.0,96861.0,0.00045308]
[1763135178973,0.04579,96873.0,96861.0,0.00045308]
[1763135179171,0.0495,96885.0,96876.0,0.20644799]
[1763135179374,0.04579,96887.0,96886.0,0.20642817]
[1763135179615,0.09504,96910.0,96885.0,0.323]
[1763135179818,0.06784,96903.0,96872.0,0.323]
[1763135180002,0.01461749,96902.0,96872.0,0.323]
[1763135180133,0.36446093,96900.0,96871.0,0.06784]
[1763135180335,0.001,96885.0,96880.0,0.20643961]
[1763135180530,0.00083074,96881.0,96870.0,0.01032311]
[1763135180774,0.06788,96891.0,96888.0,0.2064227]
[1763135180980,0.01859759,96898.0,96885.0,0.20643]
[1763135181130,0.01859759,96898.0,96891.0,0.20641636]
[1763135181131,0.06788,96892.0,96891.0,0.20641636]
[1763135181349,0.06788,96892.0,96887.0,0.20642554]
[1763135181548,0.01773758,96891.0,96870.0,0.01032311]
[1763135181788,0.06513712,96891.0,96870.0,0.01032311]
[1763135181947,0.02073264,96890.0,96872.0,0.206458]
[1763135182146,0.02073264,96890.0,96870.0,0.01032311]
[1763135182147,0.02073264,96890.0,96873.0,0.02064558]
[1763135182391,0.06788,96889.0,96887.0,0.20642492]
[1763135182600,0.06788,96890.0,96882.0,0.2064348]
[1763135182826,0.046,96899.0,96897.0,0.20640403]
[1763135183030,0.06788,96894.0,96886.0,0.20642713]
[1763135183305,0.001,96890.0,96873.0,0.00045308]
[1763135183514,0.06784,96893.0,96892.0,0.20641539]
[1763135183967,0.06784,96893.0,96873.0,0.00045308]
[1763135184171,0.06784,96893.0,96892.0,0.20641539]
[1763135184375,0.06784,96894.0,96893.0,0.20641325]
[1763135184639,0.06784,96894.0,96873.0,0.00045308]
[1763135184840,0.06784,96894.0,96892.0,0.2064141]
[1763135185041,0.06784,96894.0,96874.0,0.20645374]
[1763135185255,0.06784,96894.0,96875.0,0.02064516]
[1763135185456,0.07023264,96893.0,96873.0,0.00045308]
[1763135185659,0.07023264,96893.0,96883.0,0.20643269]
[1763135185872,0.07023264,96893.0,96892.0,0.20641539]
[1763135185873,0.02073264,96893.0,96892.0,0.20641539]
[1763135186080,0.046,96899.0,96897.0,0.20640278]
[1763135186282,0.046,96899.0,96879.0,0.06784]
[1763135186283,0.00115217,96893.0,96879.0,0.06784]
[1763135186489,0.046,96899.0,96875.0,0.10479654]
[1763135186490,0.02073264,96898.0,96875.0,0.10479654]
[1763135186692,0.00080395,96880.0,96875.0,0.10479654]
[1763135186891,0.001,96893.0,96877.0,0.20644651]
[1763135187069,0.0495,96892.0,96876.0,0.20644948]
[1763135187231,0.11734,96892.0,96878.0,0.20644477]
[1763135187432,0.11734,96892.0,96879.0,0.20644223]
[1763135187839,0.11734,96892.0,96873.0,0.20690694]
[1763135187840,0.61014101,96890.0,96873.0,0.00045308]
[1763135188159,0.02073264,96889.0,96874.0,0.20645302]
[1763135188361,0.02073264,96889.0,96879.0,0.20644227]
[1763135188569,0.0495,96889.0,96874.0,0.20645356]
[1763135188786,0.046,96923.0,96884.0,0.10479654]
[1763135188987,0.046,96923.0,96898.0,0.06516]
[1763135189161,0.046,96923.0,96900.0,0.01031991]
[1763135189342,0.0495,96922.0,96903.0,0.20638996]
[1763135189760,0.0495,96922.0,96900.0,0.01031991]
[1763135189761,0.0495,96922.0,96900.0,0.03639991]
[1763135189937,0.06792,96921.0,96906.0,0.20638556]
[1763135190143,0.06792,96921.0,96918.0,0.20635774]
[1763135190343,0.046,96923.0,96920.0,0.20635349]
[1763135190591,0.001,96922.0,96921.0,0.20635318]
[1763135190814,0.61014101,96960.0,96935.0,0.20632382]
[1763135190815,0.06792,96949.0,96935.0,0.20632382]
[1763135191046,0.06792,96949.0,96932.0,0.20632946]
[1763135191262,0.06792,96949.0,96934.0,0.20632558]
[1763135191678,0.06792,96949.0,96923.0,0.04932]
[1763135191791,0.61014101,96960.0,96942.0,0.20630892]
[1763135191999,0.61014101,96960.0,96924.0,0.20634724]
[1763135192000,0.04579,96954.0,96932.0,0.27420808]
[1763135192196,0.04579,96954.0,96952.0,0.20628703]
[1763135192412,0.04579,96954.0,96935.0,0.10479654]
[1763135192413,0.00275814,96953.0,96944.0,0.04341874]
[1763135192627,0.04558,96968.0,96951.0,0.20628977]
[1763135192826,0.04558,96968.0,96959.0,0.20627174]
[1763135193027,0.04558,96968.0,96951.0,0.20628977]
[1763135193245,0.001,96954.0,96952.0,0.20628593]
[1763135193452,0.001,96954.0,96953.0,0.16004]
[1763135193668,0.001,96954.0,96953.0,0.52645874]
[1763135193879,0.04558,96982.0,96962.0,0.06486]
[1763135194139,0.06788,96996.0,96983.0,0.20622008]
[1763135194497,0.002,96968.0,96967.0,0.20625573]
[1763135194999,0.002,96968.0,96967.0,0.27413573]
[1763135195423,0.002,96968.0,96967.0,0.27427109]
[1763135195623,0.04558,96983.0,96978.0,0.20623164]
[1763135195825,0.04558,96983.0,96967.0,0.06801536]
[1763135196033,0.04558,96983.0,96978.0,0.20623061]
[1763135196235,0.08774656,97000.0,96967.0,0.06801536]
[1763135196236,0.08774656,97000.0,96982.0,0.2710817]
[1763135196384,0.08774656,97000.0,96970.0,0.62045347]
[1763135196385,0.08774656,97000.0,96983.0,0.323]
[1763135196586,0.08774656,97000.0,96984.0,0.06788]
[1763135197026,0.08774656,97000.0,96999.0,0.32036769]
[1763135197218,0.08774656,97000.0,96999.0,0.32338769]
[1763135197490,0.08774656,97000.0,96999.0,0.09273874]
[1763135197748,0.08874656,97000.0,96989.0,0.04932]
[1763135197889,0.08874656,97000.0,96990.0,0.39088]
[1763135198100,0.08774656,97000.0,96990.0,0.39101536]
[1763135198301,0.00377422,96991.0,96990.0,0.4344341]
[1763135198646,0.00377422,96991.0,96990.0,0.65063879]
[1763135198779,0.00377422,96991.0,96990.0,0.64063879]
[1763135199662,0.08774656,97000.0,96999.0,0.57260643]
[1763135199864,0.08774656,97000.0,96999.0,0.70530643]
[1763135200059,0.08774656,97000.0,96999.0,0.64044643]
[1763135200793,0.01250069,97059.0,97006.0,0.20617281]
[1763135200995,0.01250069,97059.0,97038.0,0.20610381]
[1763135201207,0.01250069,97059.0,97012.0,0.20615917]
[1763135201208,0.04604,97039.0,97012.0,0.20615917]
[1763135201406,0.04604,97039.0,97013.0,0.06784]
[1763135201608,0.04604,97039.0,97019.0,0.323]
[1763135201810,0.04604,97039.0,97010.0,0.09216]
[1763135202105,0.04604,97039.0,97000.0,0.04932]
[1763135202387,0.0495,97038.0,97004.0,0.323]
[1763135202594,0.0495,97038.0,97001.0,0.10479654]
[1763135202731,0.0495,97038.0,96990.0,0.01031034]
[1763135202732,0.61014101,97020.0,96992.0,0.06784]
[1763135203108,0.06784,97022.0,97002.0,0.20618022]
[1763135203238,0.06784,97022.0,97004.0,0.20617556]
[1763135203448,0.02974,97021.0,97005.0,0.20617493]
[1763135203663,0.02974,97021.0,97001.0,0.04932]
[1763135204079,0.001,97020.0,97001.0,0.2555025]
[1763135204273,0.002,97020.0,97001.0,0.04932]
[1763135204472,0.001,97020.0,97002.0,0.20618131]
[1763135204933,0.001,97020.0,97007.0,0.20616944]
[1763135205138,0.001,97020.0,97002.0,0.41516]
[1763135205357,0.001,97021.0,97012.0,0.20615987]
[1763135205582,0.001,97021.0,97010.0,0.2061636]
[1763135205790,0.002,97021.0,97012.0,0.20616004]
[1763135205940,0.0678,97038.0,97011.0,0.0678]
[1763135206148,0.61014101,97030.0,97011.0,0.0678]
[1763135206401,0.0005,97012.0,97000.0,0.0678]
[1763135206546,0.002,97020.0,97000.0,0.0678]
[1763135206547,0.001,97020.0,97000.0,0.0678]
[1763135206748,0.0495,97044.0,97026.0,0.20612954]
[1763135206950,0.0495,97044.0,97020.0,0.0678]
[1763135207156,0.001,97038.0,97021.0,0.20614093]
[1763135207357,0.0505,97038.0,97020.0,0.0678]
[1763135207575,0.0495,97038.0,97020.0,0.0678]
[1763135207897,0.00045409,97039.0,97038.0,0.20610482]
[1763135208315,0.00145409,97039.0,97038.0,0.20610482]
[1763135208518,0.00145409,97039.0,97028.0,0.0678]
[1763135208675,0.00145409,97039.0,97038.0,0.25542482]
[1763135208885,0.00145409,97039.0,97038.0,0.32028482]
[1763135209288,0.00145409,97039.0,97038.0,0.38808482]
[1763135209462,0.00045409,97039.0,97038.0,0.38808482]
[1763135210098,0.00045409,97039.0,97038.0,0.43150356]
[1763135210301,0.00045409,97039.0,97038.0,0.36664356]
[1763135210777,0.00045409,97039.0,97038.0,0.36764356]
[1763135210951,0.00045409,97039.0,97038.0,0.32422482]
[1763135211319,0.00045409,97039.0,97038.0,0.68964356]
[1763135211703,0.00045409,97039.0,97038.0,0.69064356]
[1763135212736,0.00045409,97039.0,97038.0,0.69164356]
[1763135213231,0.00045409,97039.0,97038.0,0.69064356]
[1763135213438,0.00045409,97039.0,97038.0,0.47547031]
[1763135213804,0.00045409,97039.0,97038.0,0.61377513]
[1763135213999,0.00045409,97039.0,97038.0,0.68253513]
[1763135214968,0.00045409,97039.0,97038.0,0.53110482]
[1763135215175,0.00045409,97039.0,97038.0,0.20810482]
[1763135215403,0.00045409,97039.0,97038.0,0.57452356]
[1763135215776,0.00045409,97039.0,97038.0,0.57352356]
[1763135216215,0.00045409,97039.0,97038.0,0.57252356]
[1763135216419,0.00173736,97039.0,97038.0,0.63390136]
[1763135216972,0.00173736,97039.0,97038.0,0.6773201]
[1763135217198,0.00173736,97039.0,97038.0,0.6783201]
[1763135217640,0.00173736,97039.0,97038.0,0.6773201]
[1763135218072,0.00173736,97039.0,97038.0,0.6783201]
[1763135218275,0.00173736,97039.0,97038.0,1.0783201]
[1763135218476,0.00173736,97039.0,97038.0,1.0773201]
[1763135218608,0.00173736,97039.0,97038.0,1.0783201]
[1763135218805,0.00173736,97039.0,97038.0,1.1460801]
[1763135219012,0.00173736,97039.0,97038.0,1.0773201]
[1763135219238,0.00173736,97039.0,97038.0,1.1470801]
[1763135219702,0.00173736,97039.0,97038.0,1.1460801]
[1763135220157,0.00173736,97039.0,97038.0,1.1470801]
[1763135220785,0.00173736,97039.0,97038.0,1.1450801]
[1763135220990,0.00173736,97039.0,97038.0,1.10166136]
[1763135221214,0.00173736,97039.0,97038.0,1.03590136]
[1763135221423,0.00173736,97039.0,97038.0,0.38062136]
[1763135222105,0.00173736,97039.0,97038.0,0.001]
[1763135222317,0.00173736,97039.0,97038.0,0.20710482]
[1763135222555,0.00173736,97039.0,97038.0,0.30151482]
[1763135222779,0.00173736,97039.0,97038.0,0.27582482]
[1763135223221,0.00173736,97039.0,97038.0,0.001]
[1763135223432,0.00228736,97039.0,97038.0,0.001]
[1763135224080,0.00228736,97039.0,97033.0,0.20611356]
[1763135224304,0.00045409,97039.0,97037.0,0.20610677]
[1763135224527,0.00045409,97039.0,97038.0,0.17973048]
[1763135224750,0.00045409,97039.0,97038.0,0.11402048]
[1763135224985,0.0013188,97039.0,97038.0,0.08632048]
[1763135225245,0.0013188,97039.0,97038.0,0.06402922]
[1763135225468,0.0013188,97039.0,97038.0,0.04341874]
[1763135225706,0.0013188,97039.0,97038.0,0.36641874]
[1763135226608,0.0013188,97039.0,97038.0,0.36741874]
[1763135227059,1e-08,97039.0,97038.0,0.36641874]
[1763135227289,0.05412,97107.0,97090.0,0.00999999]
[1763135227530,0.02271,97091.0,97090.0,0.00013536]
[1763135227784,0.323,97116.0,97090.0,0.00013536]
[1763135228041,0.02271,97099.0,97090.0,0.01013535]
[1763135228258,0.05104364,97122.0,97090.0,0.01013535]
[1763135228259,0.01041558,97117.0,97090.0,0.00013536]
[1763135228472,0.001,97107.0,97100.0,0.00999999]
[1763135228699,0.001,97107.0,97106.0,0.20571538]
[1763135228981,0.20593925,97116.0,97115.0,0.2059414]
[1763135229205,0.20793925,97116.0,97115.0,0.4388414]
[1763135229417,0.20793925,97116.0,97110.0,0.00999999]
[1763135229635,0.20793925,97116.0,97090.0,0.01043508]
[1763135229842,0.20793925,97116.0,97114.0,0.20594165]
[1763135230051,0.20793925,97116.0,97110.0,0.00999999]
[1763135230523,0.20593925,97116.0,97115.0,0.001]
[1763135230978,0.20593925,97116.0,97115.0,0.2069414]
[1763135231391,0.20693925,97116.0,97115.0,0.2069414]
[1763135231822,0.20593925,97116.0,97115.0,0.2059414]
[1763135232032,0.20693925,97116.0,97115.0,0.2059414]
[1763135232444,0.20593925,97116.0,97115.0,0.2059414]
[1763135232650,0.20593925,97116.0,97115.0,0.31740014]
[1763135233059,0.20593925,97116.0,97115.0,0.11145874]
[1763135233262,0.20593925,97116.0,97115.0,0.31740014]
[1763135233687,0.20593925,97116.0,97115.0,0.2739814]
[1763135233906,0.20799569,97116.0,97115.0,0.001]
[1763135234356,0.00205644,97116.0,97115.0,0.001]
[1763135234788,0.00205644,97116.0,97115.0,0.2069414]
[1763135235009,0.00205644,97116.0,97115.0,0.001]
[1763135235234,0.05155644,97116.0,97115.0,0.001]
[1763135235680,0.00205644,97116.0,97115.0,0.001]
[1763135236122,0.00205644,97116.0,97112.0,0.25155726]
[1763135236123,0.00305644,97116.0,97110.0,0.00999999]
[1763135236325,0.001,97116.0,97114.0,0.20594344]
[1763135236546,0.002,97116.0,97114.0,0.20594344]